Workbook

Sheet Lookups (hidden)
A1: Lookup Table
A3: -999 | C3: 1
A4: 12 | B4: CAUTION - You have overfilled this aerosol can. Max 12 oz fill. | C4: 2
A5: 999 | C5: 3
A8: Fill Weight Limits
B9: Grams | C9: Oz
A10: 15993 | B10: 180 | C10: 9999
A11: 61003 | B11: 100 | C11: 9999
A12: 61993 | B12: 9999 | C12: 3.03
A13: 62003 | B13: 9999 | C13: 3.03
A14: 62013 | B14: 9999 | C14: 3.03
A18: MIR Calculation
A19: Additions | B19: Part Number | C19: Volume (oz) | D19: MIR | E19: Weighted MIR | I19: Part | J19: Description | K19: Fill Wgt (oz) | L19: Max Fill (oz) | M19: CA MIR
B20: 15993 | C20: 5.43 | D20: 0.451 | E20: =ROUND(+C20*D20,4) -> 2.4489 | I20: 15993 | J20: Color Coat - Universal Color Coat | K20: 5.432098765 | L20: 12 | M20: 0.451
A21: 1 | I21: 61003 | J21: Multi-Coat Aerosol Blank | K21: 8.465608466 | L21: 12 | M21: 0.505
A22: 2 | I22: 61993 | J22: Custom Fill Aerosol Blank | K22: 8.395061728 | L22: =ROUND(+K22+3,2) -> 11.4 | M22: 0.505
A23: 3 | I23: 62003 | J23: Custom Fill Waterborne Aerosol Blank | K23: 7.054673721 | L23: 10 | M23: 0.645
A24: 4 | I24: 62013 | J24: Custom Fill+ High Build Aerosol Blank | K24: 3.880070547 | L24: 6.9 | M24: 0.451
A25: 5
A26: Totals
A27: Calculated MIR (Weighted MIR / Volume)
A31: bg
A32: density (lbs per gallon) | B32: 8.27
A33: grams per lb | B33: 454
A34: total grams in density | B34: =+B33*B32 -> 3754.58
A35: no in mix | B35: 40
A36: portion of gallon | B36: =+B35/B34 -> 0.010653655
A37: oz | B37: =+B36*128 -> 1.36366784
A40: grams per lb | B40: 454
A41: oz per gallon | B41: 128
A47: OZ per UOM | B47: OZ
A48: Half Pint | B48: 6
A49: Pint | B49: 16
A50: Quart | B50: 32
A51: Half Gallon | B51: 64
A52: Gallon | B52: 128

Sheet Instructions
I1: 2019-10-10
A25: Additional Instructions and Helpful Tips
A27: Information on aerosol blanks
A28: https://www.semproducts.com/products/refinish/aerosol-filling
A30: SOP on how to fill an aerosol blank can
A31: https://www.semproducts.com/blog/filling-custom-filltm-aerosol-blanks-standard-operating-procedure-sop
A33: SEM Contact Info:
A34: Technical - 1-800-831-1122 - tech@semproducts.com
A35: Customer Care - 1-866-327-7829 - custcare@semproducts.com

Sheet Calculator_Manual
F1: ** HIDE ** | H1: 14
C2: 2 | D2: lookup column | F2: 6 | G2: 12 | H2: 10
B3: MANUAL ENTRY
B6: MIR Calculator using California MIR Values | D6: Enter data in yellow | I6: MIR Calculated
B7: =NOW() -> 2019-12-05T10:33:20.850 | I7: =IFERROR(ROUND(+I29/G29,2),0) -> 0
B10: Part Number | C10: Description | F10: Density | G10: Fill (Oz) | H10: Ingredient MIR | I10: Weighted MIR
A11: SEM Aerosol Part No | C11: =IFERROR(IFERROR(VLOOKUP($B11,adds,C$2,FALSE),VLOOKUP(TEXT($B11,0),adds,C$2,FALSE)),"") ->  | F11: =IFERROR(ROUND(IFERROR(VLOOKUP($B11,adds,F$2,FALSE),VLOOKUP(TEXT($B11,0),adds,F$2,FALSE)),4),0) -> 0 | G11: =IFERROR(ROUND(IFERROR(VLOOKUP($B11,adds,G$2,FALSE),VLOOKUP(TEXT($B11,0),adds,G$2,FALSE)),4),0) -> 0 | H11: =IFERROR(ROUND(IFERROR(VLOOKUP($B11,adds,H$2,FALSE),VLOOKUP(TEXT($B11,0),adds,H$2,FALSE)),4),0) -> 0 | I11: =IFERROR(ROUND(+G11*H11,4),0) -> 0
B12: =IFERROR(IFERROR(VLOOKUP(B11,Lookups!$I$20:$M$24,4,FALSE),VLOOKUP(TEXT(B11,0),Lookups!$I$20:$M$24,4,FALSE)),"") ->  | C12: oz Total recommended fill | D12: =IF(ISBLANK(B11),0,+B12-G11) -> 0 | E12: oz Liquid Fill
B14: Enter Paint Formula Details Below
B15: Volume | C15: Quart | D15: =VLOOKUP(C15,uom,2,FALSE) -> 32 | E15: US Fluid Oz
B16: Part Number | C16: Description | D16: Grams Added (individual) | E16: Grams for Custom Fill | F16: Density | G16: Fill (Oz) | H16: Ingredient MIR | I16: Weighted MIR
A17: Part No 1 | C17: =IFERROR(IFERROR(VLOOKUP($B17,adds,C$2,FALSE),VLOOKUP(TEXT($B17,0),adds,C$2,FALSE)),"") ->  | E17: =+D17*D$12/D$15 -> 0 | F17: =IFERROR(ROUND(IFERROR(VLOOKUP($B17,adds,F$2,FALSE),VLOOKUP(TEXT($B17,0),adds,F$2,FALSE)),4),0) -> 0 | G17: =IFERROR(ROUND(+E17/(F17*454)*128,4),0) -> 0 | H17: =IFERROR(ROUND(IFERROR(VLOOKUP($B17,adds,H$2,FALSE),VLOOKUP(TEXT($B17,0),adds,H$2,FALSE)),4),0) -> 0 | I17: =IFERROR(ROUND(+G17*H17,4),0) -> 0
A18: Part No 2 | E18: 0 | F18: 0 | G18: =IFERROR(ROUND(+E18/(F18*454)*128,4),0) -> 0 | H18: 0 | I18: 0
A19: Part No 3 | E19: 0 | F19: 0 | G19: 0 | H19: 0 | I19: 0
A20: Part No 4 | E20: 0 | F20: 0 | G20: 0 | H20: 0 | I20: 0
A21: Part No 5 | E21: 0 | F21: 0 | G21: 0 | H21: 0 | I21: 0
A22: Part No 6 | E22: =+D22*D$12/D$15 -> 0 | F22: 0 | G22: 0 | H22: 0 | I22: 0
A23: Part No 7 | E23: =+D23*D$12/D$15 -> 0 | F23: 0 | G23: 0 | H23: 0 | I23: 0
A24: Part No 8 | E24: 0 | F24: 0 | G24: 0 | H24: 0 | I24: 0
A25: Part No 9 | E25: 0 | F25: 0 | G25: 0 | H25: 0 | I25: 0
A26: Part No 10 | E26: 0 | F26: 0 | G26: 0 | H26: 0 | I26: 0
B27: Total Adds | D27: =SUM(D17:D26) -> 0 | E27: =SUM(E17:E26) -> 0 | G27: =SUM(G17:G26) -> 0 | I27: =SUM(I17:I26) -> 0
D28: =IFERROR(IF(D27>VLOOKUP(TEXT(B11,0),Lookups!A10:C14,2,FALSE),"OVERFILLED",""),"") ->  | G28: =IFERROR(IF(G27>VLOOKUP(TEXT(B11,0),Lookups!A10:C14,3,FALSE),"OVERFILLED",""),"") -> 
B29: Grand Total | G29: =+G27+G11 -> 0 | I29: =+I27+I11 -> 0
B31: Calculator Notes:
B32: See instructions on instructions tab
B34: Please consult local, state and national regulations for important regulatory guidelines. California's Regulation for Reducing the Ozone Formed from Aerosol Coating Product Emissions can be found at the link below and those limits govern consumption in California.
B36: https://ww3.arb.ca.gov/consprod/regs/2019/article_3_final_5_2019.pdf
B38: SEM Contact Info:
B39: Technical - 1-800-831-1122 - tech@semproducts.com
B40: Customer Care - 1-866-327-7829 - custcare@semproducts.com
N41: =+I7 -> 0
L42: Category | N42: MIR value
N43: =NOW() -> 2019-12-05T10:33:20.850

Sheet Calculator_PPG Toners
F1: ** HIDE ** | H1: 14
C2: 2 | D2: lookup column | F2: 6 | G2: 12 | H2: 10
B3: CALCULATOR FOR PPG TONERS
B6: MIR Calculator using California MIR Values | D6: Enter data in yellow | I6: MIR Calculated
B7: =NOW() -> 2019-12-05T10:33:20.850 | I7: =IFERROR(ROUND(+I29/G29,2),0) -> 0
B10: Part Number | C10: Description | F10: Density | G10: Fill (Oz) | H10: Ingredient MIR | I10: Weighted MIR
A11: SEM Aerosol Part No | C11: =IFERROR(IFERROR(VLOOKUP($B11,adds,C$2,FALSE),VLOOKUP(TEXT($B11,0),adds,C$2,FALSE)),"") ->  | F11: =IFERROR(ROUND(IFERROR(VLOOKUP($B11,adds,F$2,FALSE),VLOOKUP(TEXT($B11,0),adds,F$2,FALSE)),4),0) -> 0 | G11: =IFERROR(ROUND(IFERROR(VLOOKUP($B11,adds,G$2,FALSE),VLOOKUP(TEXT($B11,0),adds,G$2,FALSE)),4),0) -> 0 | H11: =IFERROR(ROUND(IFERROR(VLOOKUP($B11,adds,H$2,FALSE),VLOOKUP(TEXT($B11,0),adds,H$2,FALSE)),4),0) -> 0 | I11: =IFERROR(ROUND(+G11*H11,4),0) -> 0
B12: =IFERROR(IFERROR(VLOOKUP(B11,Lookups!$I$20:$M$24,4,FALSE),VLOOKUP(TEXT(B11,0),Lookups!$I$20:$M$24,4,FALSE)),"") ->  | C12: oz Total recommended fill | D12: =IF(ISBLANK(B11),0,+B12-G11) -> 0 | E12: oz Liquid Fill
B14: Enter Paint Formula Details Below
B15: Volume | C15: Pint | D15: =VLOOKUP(C15,uom,2,FALSE) -> 16 | E15: US Fluid Oz
B16: Part Number | C16: Description | D16: Grams Added (individual) | E16: Grams for Custom Fill | F16: Density | G16: Fill (Oz) | H16: Ingredient MIR | I16: Weighted MIR
A17: Part No 1 | C17: =IFERROR(IFERROR(VLOOKUP($B17,adds,C$2,FALSE),VLOOKUP(TEXT($B17,0),adds,C$2,FALSE)),"") ->  | E17: =+D17*D$12/D$15 -> 0 | F17: =IFERROR(ROUND(IFERROR(VLOOKUP($B17,adds,F$2,FALSE),VLOOKUP(TEXT($B17,0),adds,F$2,FALSE)),4),0) -> 0 | G17: =IFERROR(ROUND(+E17/(F17*454)*128,4),0) -> 0 | H17: =IFERROR(ROUND(IFERROR(VLOOKUP($B17,adds,H$2,FALSE),VLOOKUP(TEXT($B17,0),adds,H$2,FALSE)),4),0) -> 0 | I17: =IFERROR(ROUND(+G17*H17,4),0) -> 0
A18: Part No 2 | E18: 0 | F18: 0 | G18: =IFERROR(ROUND(+E18/(F18*454)*128,4),0) -> 0 | H18: 0 | I18: 0
A19: Part No 3 | E19: 0 | F19: 0 | G19: 0 | H19: 0 | I19: 0
A20: Part No 4 | E20: 0 | F20: 0 | G20: 0 | H20: 0 | I20: 0
A21: Part No 5 | E21: 0 | F21: 0 | G21: 0 | H21: 0 | I21: 0
A22: Part No 6 | E22: 0 | F22: 0 | G22: 0 | H22: 0 | I22: 0
A23: Part No 7 | E23: 0 | F23: 0 | G23: 0 | H23: 0 | I23: 0
A24: Part No 8 | E24: 0 | F24: 0 | G24: 0 | H24: 0 | I24: 0
A25: Part No 9 | E25: 0 | F25: 0 | G25: 0 | H25: 0 | I25: 0
A26: Part No 10 | E26: 0 | F26: 0 | G26: 0 | H26: 0 | I26: 0
B27: Total Adds | D27: =SUM(D17:D26) -> 0 | E27: =SUM(E17:E26) -> 0 | G27: =SUM(G17:G26) -> 0 | I27: =SUM(I17:I26) -> 0
D28: =IFERROR(IF(D27>VLOOKUP(TEXT(B11,0),Lookups!A10:C14,2,FALSE),"OVERFILLED",""),"") ->  | G28: =IFERROR(IF(G27>VLOOKUP(TEXT(B11,0),Lookups!A10:C14,3,FALSE),"OVERFILLED",""),"") -> 
B29: Grand Total | G29: =+G27+G11 -> 0 | I29: =+I27+I11 -> 0
B31: Calculator Notes:
B32: See instructions on instructions tab
B34: Please consult local, state and national regulations for important regulatory guidelines. California's Regulation for Reducing the Ozone Formed from Aerosol Coating Product Emissions can be found at the link below and those limits govern consumption in California.
B36: https://ww3.arb.ca.gov/consprod/regs/2019/article_3_final_5_2019.pdf
B38: SEM Contact Info:
B39: Technical - 1-800-831-1122 - tech@semproducts.com
B40: Customer Care - 1-866-327-7829 - custcare@semproducts.com
N41: =+I7 -> 0
L42: Category | N42: MIR value
N43: =NOW() -> 2019-12-05T10:33:20.850

Sheet Data (hidden)
A1: 2019-10-10T06:35:00.190
J4: =MAX(J7:J254) -> 7.39
A6: Component Default Alias | B6: Component Default Alias Description | C6: Component Property | D6: Paint System Code | E6: Component ID | F6: Density | G6: Solid Content | H6: Volume % Solids | I6: Water Content | J6: California MIR data | L6: OZ
A7: ="DBC500" -> DBC500 | B7: ="BLENDER" -> BLENDER | C7: ="Base Maker" -> Base Maker | D7: ="DBC MET" -> DBC MET | E7: ="20000175" -> 20000175 | F7: ="7.748" -> 7.748 | G7: ="26.22" -> 26.22 | H7: ="21.57" -> 21.57 | I7: ="0" -> 0 | J7: 2.991412457 | K7: 0
A8: ="DBX1689" -> DBX1689 | B8: ="CLEAR" -> CLEAR | C8: ="Base Maker" -> Base Maker | D8: DBC MET | E8: ="20000177" -> 20000177 | F8: ="7.542" -> 7.542 | G8: ="13.3" -> 13.3 | H8: ="10.3" -> 10.3 | I8: 0 | J8: 3.180242391 | K8: 0
A9: ="DCU2021" -> DCU2021 | B9: ="CLEAR" -> CLEAR | C9: ="Mixing Clear" -> Mixing Clear | D9: DBC MET | E9: ="20000181" -> 20000181 | F9: ="7.933" -> 7.933 | G9: ="49.3" -> 49.3 | H9: ="43.33" -> 43.33 | I9: 0 | J9: 2.892765 | K9: 0
A10: ="DMD1602" -> DMD1602 | B10: ="GS YELLOW" -> GS YELLOW | C10: ="Normal Solid" -> Normal Solid | D10: DBC MET | E10: ="20000269" -> 20000269 | F10: ="7.929" -> 7.929 | G10: ="26.89" -> 26.89 | H10: ="21.2" -> 21.2 | I10: 0 | J10: 3.341046752 | K10: 0
A11: ="DMD1603" -> DMD1603 | B11: ="RED SHADE YELLOW" -> RED SHADE YELLOW | C11: Normal Solid | D11: DBC MET | E11: ="20000972" -> 20000972 | F11: ="7.943" -> 7.943 | G11: ="23.14" -> 23.14 | H11: ="16.38" -> 16.38 | I11: 0 | J11: 3.266037096 | K11: 0
A12: ="DMD1605" -> DMD1605 | B12: ="MAGENTA" -> MAGENTA | C12: Normal Solid | D12: DBC MET | E12: ="20000270" -> 20000270 | F12: ="7.871" -> 7.871 | G12: ="24.97" -> 24.97 | H12: ="19.27" -> 19.27 | I12: 0 | J12: 3.794891207 | K12: 0
A13: ="DMD1606" -> DMD1606 | B13: ="MAROON" -> MAROON | C13: Normal Solid | D13: DBC MET | E13: ="20000271" -> 20000271 | F13: ="7.874" -> 7.874 | G13: ="24.4" -> 24.4 | H13: ="18.97" -> 18.97 | I13: ="0.01" -> 0.01 | J13: 2.550686986 | K13: 0
A14: ="DMD1607" -> DMD1607 | B14: ="BLUE" -> BLUE | C14: Normal Solid | D14: DBC MET | E14: ="20000272" -> 20000272 | F14: ="7.969" -> 7.969 | G14: ="28.13" -> 28.13 | H14: ="21.68" -> 21.68 | I14: ="0" -> 0 | J14: 3.29818155 | K14: 0
A15: ="DMD1608" -> DMD1608 | B15: ="LF ORANGE" -> LF ORANGE | C15: Normal Solid | D15: DBC MET | E15: ="20000273" -> 20000273 | F15: ="8.166" -> 8.166 | G15: ="33.59" -> 33.59 | H15: ="26.32" -> 26.32 | I15: 0 | J15: 3.054647093 | K15: 0
A16: ="DMD1609" -> DMD1609 | B16: ="QUINDO VIOLET" -> QUINDO VIOLET | C16: Normal Solid | D16: DBC MET | E16: ="20000949" -> 20000949 | F16: ="7.966" -> 7.966 | G16: ="25.96" -> 25.96 | H16: ="27.17" -> 27.17 | I16: 0 | J16: 2.559000147 | K16: 0
A17: ="DMD1610" -> DMD1610 | B17: ="ORANGE" -> ORANGE | C17: Normal Solid | D17: DBC MET | E17: ="20000947" -> 20000947 | F17: ="8.225" -> 8.225 | G17: ="30.08" -> 30.08 | H17: ="21.67" -> 21.67 | I17: 0 | J17: 2.012674861 | K17: 0
A18: ="DMD1611" -> DMD1611 | B18: ="ORANGE" -> ORANGE | C18: Normal Solid | D18: DBC MET | E18: ="64001010" -> 64001010 | F18: ="8.037" -> 8.037 | G18: ="33.85" -> 33.85 | H18: ="27.71" -> 27.71 | I18: 0 | J18: 0 | K18: 0
A19: ="DMD1612" -> DMD1612 | B19: ="WEAK GOLD" -> WEAK GOLD | C19: Normal Solid | D19: DBC MET | E19: ="64000886" -> 64000886 | F19: ="7.803" -> 7.803 | G19: ="22.71" -> 22.71 | H19: ="17.74" -> 17.74 | I19: 0 | J19: 1.477522391 | K19: 0
A20: ="DMD1613" -> DMD1613 | B20: ="WEAK BLUE" -> WEAK BLUE | C20: Normal Solid | D20: DBC MET | E20: ="64000887" -> 64000887 | F20: ="7.78" -> 7.78 | G20: ="22.71" -> 22.71 | H20: ="18.02" -> 18.02 | I20: 0 | J20: 2.96723005 | K20: 0
A21: ="DMD1614" -> DMD1614 | B21: ="WEAK YELLOW OXIDE" -> WEAK YELLOW OXIDE | C21: Normal Solid | D21: DBC MET | E21: ="64000888" -> 64000888 | F21: ="7.887" -> 7.887 | G21: ="24.36" -> 24.36 | H21: ="18.25" -> 18.25 | I21: 0 | J21: 2.840706078 | K21: 0
A22: ="DMD1615" -> DMD1615 | B22: ="WEAK GREEN" -> WEAK GREEN | C22: Normal Solid | D22: DBC MET | E22: ="64000889" -> 64000889 | F22: ="7.794" -> 7.794 | G22: ="24.82" -> 24.82 | H22: ="19.62" -> 19.62 | I22: 0 | J22: 1.829918916 | K22: 0
A23: ="DMD1616" -> DMD1616 | B23: ="WEAK RED" -> WEAK RED | C23: Normal Solid | D23: DBC MET | E23: ="64000890" -> 64000890 | F23: ="7.768" -> 7.768 | G23: ="22.74" -> 22.74 | H23: ="18.14" -> 18.14 | I23: 0 | J23: 1.478188382 | K23: 0
A24: ="DMD1621" -> DMD1621 | B24: ="FINE TITANIUM WHITE" -> FINE TITANIUM WHITE | C24: ="Flop Adjuster/Tone controller" -> Flop Adjuster/Tone controller | D24: DBC MET | E24: ="64001007" -> 64001007 | F24: ="9.476" -> 9.476 | G24: ="40.24" -> 40.24 | H24: ="22.2" -> 22.2 | I24: 0 | J24: 2.563579381 | K24: 0
A25: ="DMD1625" -> DMD1625 | B25: ="YELLOW" -> YELLOW | C25: ="Normal Solid" -> Normal Solid | D25: DBC MET | E25: ="64001011" -> 64001011 | F25: ="10.951" -> 10.951 | G25: ="50.91" -> 50.91 | H25: ="26.65" -> 26.65 | I25: 0 | J25: 2.145406906 | K25: 0
A26: ="DMD1627" -> DMD1627 | B26: ="INDO BLUE" -> INDO BLUE | C26: Normal Solid | D26: DBC MET | E26: ="64001055" -> 64001055 | F26: ="7.916" -> 7.916 | G26: ="31.39" -> 31.39 | H26: ="24.93" -> 24.93 | I26: 0 | J26: 3.544750822 | K26: 0
A27: ="DMD1628" -> DMD1628 | B27: ="PERYLENE VIOLET" -> PERYLENE VIOLET | C27: Normal Solid | D27: DBC MET | E27: ="64001213" -> 64001213 | F27: ="8.018" -> 8.018 | G27: ="30" -> 30 | H27: ="24.07" -> 24.07 | I27: 0 | J27: 2.821324374 | K27: 0
A28: ="DMD1630" -> DMD1630 | B28: ="CARMINE" -> CARMINE | C28: Normal Solid | D28: DBC MET | E28: ="64001241" -> 64001241 | F28: ="7.839" -> 7.839 | G28: ="26.43" -> 26.43 | H28: ="21.15" -> 21.15 | I28: 0 | J28: 1.557433481 | K28: 0
A29: ="DMD1632" -> DMD1632 | B29: ="OLIVE" -> OLIVE | C29: Normal Solid | D29: DBC MET | E29: ="64001231" -> 64001231 | F29: ="8.064" -> 8.064 | G29: ="26.91" -> 26.91 | H29: ="20.24" -> 20.24 | I29: 0 | J29: 1.412796731 | K29: 0
A30: ="DMD1634" -> DMD1634 | B30: ="ORGANIC BROWN" -> ORGANIC BROWN | C30: Normal Solid | D30: DBC MET | E30: ="64001497" -> 64001497 | F30: ="7.8" -> 7.8 | G30: ="28.72" -> 28.72 | H30: ="24.02" -> 24.02 | I30: 0 | J30: 2.800863408 | K30: 0
A31: ="DMD1647" -> DMD1647 | B31: ="CARBON BLACK" -> CARBON BLACK | C31: Normal Solid | D31: DBC MET | E31: ="64001498" -> 64001498 | F31: ="7.96" -> 7.96 | G31: ="27.03" -> 27.03 | H31: ="21.17" -> 21.17 | I31: 0 | J31: 2.995118677 | K31: 0
A32: ="DMD1659" -> DMD1659 | B32: ="CLEAN RED-SHADE PHTHALO BLUE" -> CLEAN RED-SHADE PHTHALO BLUE | C32: Normal Solid | D32: DBC MET | E32: ="64001692" -> 64001692 | F32: ="9.883" -> 9.883 | G32: ="20.79" -> 20.79 | H32: ="20.08" -> 20.08 | I32: 0 | J32: 0.7544284297 | K32: 0
A33: ="DMD1675" -> DMD1675 | B33: ="BLUE" -> BLUE | C33: Normal Solid | D33: DBC MET | E33: ="20000274" -> 20000274 | F33: ="7.921" -> 7.921 | G33: ="26.92" -> 26.92 | H33: ="21.01" -> 21.01 | I33: 0 | J33: 3.145335634 | K33: 0
A34: ="DMD1676" -> DMD1676 | B34: ="BLUE" -> BLUE | C34: Normal Solid | D34: DBC MET | E34: ="20000275" -> 20000275 | F34: ="7.961" -> 7.961 | G34: ="27.32" -> 27.32 | H34: ="20.79" -> 20.79 | I34: 0 | J34: 3.183826558 | K34: 0
A35: ="DMD1677" -> DMD1677 | B35: ="RED" -> RED | C35: Normal Solid | D35: DBC MET | E35: ="20000276" -> 20000276 | F35: ="7.981" -> 7.981 | G35: ="28.05" -> 28.05 | H35: ="21.45" -> 21.45 | I35: 0 | J35: 2.88616972 | K35: 0
A36: ="DMD1678" -> DMD1678 | B36: ="GREEN" -> GREEN | C36: Normal Solid | D36: DBC MET | E36: ="20000277" -> 20000277 | F36: ="8.059" -> 8.059 | G36: ="28.45" -> 28.45 | H36: ="21.07" -> 21.07 | I36: 0 | J36: 3.436032673 | K36: 0
A37: ="DMD1679" -> DMD1679 | B37: ="RED" -> RED | C37: Normal Solid | D37: DBC MET | E37: ="20000278" -> 20000278 | F37: ="7.824" -> 7.824 | G37: ="23.4" -> 23.4 | H37: ="17.97" -> 17.97 | I37: 0 | J37: 2.93640534 | K37: 0
A38: ="DMD1680" -> DMD1680 | B38: ="FINE ALUM." -> FINE ALUM. | C38: ="Metallic" -> Metallic | D38: DBC MET | E38: ="20000279" -> 20000279 | F38: ="7.907" -> 7.907 | G38: ="24.02" -> 24.02 | H38: ="17.47" -> 17.47 | I38: 0 | J38: 2.652775476 | K38: 0
A39: ="DMD1681" -> DMD1681 | B39: ="MED. ALUM." -> MED. ALUM. | C39: ="Metallic" -> Metallic | D39: DBC MET | E39: ="20000280" -> 20000280 | F39: ="7.892" -> 7.892 | G39: ="23.88" -> 23.88 | H39: ="17.33" -> 17.33 | I39: 0 | J39: 2.714959157 | K39: 0
A40: ="DMD1682" -> DMD1682 | B40: ="CRS. ALUM." -> CRS. ALUM. | C40: ="Metallic" -> Metallic | D40: DBC MET | E40: ="20000281" -> 20000281 | F40: ="7.896" -> 7.896 | G40: ="23.91" -> 23.91 | H40: ="17.48" -> 17.48 | I40: 0 | J40: 2.754012023 | K40: 0
A41: ="DMD1683" -> DMD1683 | B41: ="BLACK" -> BLACK | C41: ="Normal Solid" -> Normal Solid | D41: DBC MET | E41: ="20000282" -> 20000282 | F41: ="7.605" -> 7.605 | G41: ="19" -> 19 | H41: ="15" -> 15 | I41: 0 | J41: 5.003127116 | K41: 0
A42: ="DMD1684" -> DMD1684 | B42: ="WHITE" -> WHITE | C42: ="Normal Solid" -> Normal Solid | D42: DBC MET | E42: ="20000283" -> 20000283 | F42: ="10.85" -> 10.85 | G42: ="52.06" -> 52.06 | H42: ="29.51" -> 29.51 | I42: 0 | J42: 2.391080295 | K42: 0
A43: ="DMD1685" -> DMD1685 | B43: ="SUPER FINE BRIGHT ALUMINUM" -> SUPER FINE BRIGHT ALUMINUM | C43: ="Metallic" -> Metallic | D43: DBC MET | E43: ="64003234" -> 64003234 | F43: ="7.844" -> 7.844 | G43: ="22.69" -> 22.69 | H43: ="16.86" -> 16.86 | I43: 0 | J43: 1.500228973 | K43: 0
A44: ="DMD1686" -> DMD1686 | B44: ="FINE ALUM." -> FINE ALUM. | C44: ="Metallic" -> Metallic | D44: DBC MET | E44: ="20000284" -> 20000284 | F44: ="7.867" -> 7.867 | G44: ="23.45" -> 23.45 | H44: ="17.11" -> 17.11 | I44: 0 | J44: 2.769536828 | K44: 0
A45: ="DMD1687" -> DMD1687 | B45: ="MED. ALUM." -> MED. ALUM. | C45: ="Metallic" -> Metallic | D45: DBC MET | E45: ="20000285" -> 20000285 | F45: ="7.861" -> 7.861 | G45: ="23.47" -> 23.47 | H45: ="17.38" -> 17.38 | I45: 0 | J45: 3.005425677 | K45: 0
A46: ="DMD1690" -> DMD1690 | B46: ="CRS. ALUM." -> CRS. ALUM. | C46: ="Metallic" -> Metallic | D46: DBC MET | E46: ="20000286" -> 20000286 | F46: ="7.861" -> 7.861 | G46: ="23.48" -> 23.48 | H46: ="17.12" -> 17.12 | I46: 0 | J46: 2.759224138 | K46: 0
A47: ="DMD1692" -> DMD1692 | B47: ="RED" -> RED | C47: ="Normal Solid" -> Normal Solid | D47: DBC MET | E47: ="20000287" -> 20000287 | F47: ="7.991" -> 7.991 | G47: ="29.6" -> 29.6 | H47: ="22.93" -> 22.93 | I47: 0 | J47: 3.039952304 | K47: 0
A48: ="DMD1693" -> DMD1693 | B48: ="GREEN" -> GREEN | C48: ="Normal Solid" -> Normal Solid | D48: DBC MET | E48: ="20000288" -> 20000288 | F48: ="7.982" -> 7.982 | G48: ="27.38" -> 27.38 | H48: ="20.54" -> 20.54 | I48: 0 | J48: 3.461556557 | K48: 0
A49: ="DMD1694" -> DMD1694 | B49: ="MAROON" -> MAROON | C49: ="Normal Solid" -> Normal Solid | D49: DBC MET | E49: ="20000289" -> 20000289 | F49: ="7.873" -> 7.873 | G49: ="23.09" -> 23.09 | H49: ="16.47" -> 16.47 | I49: 0 | J49: 3.294779649 | K49: 0
A50: ="DMD1696" -> DMD1696 | B50: ="COARSE SILVER DOLLAR ALUMINUM" -> COARSE SILVER DOLLAR ALUMINUM | C50: ="Metallic" -> Metallic | D50: DBC MET | E50: ="64000185" -> 64000185 | F50: ="7.982" -> 7.982 | G50: ="24.47" -> 24.47 | H50: ="18.67" -> 18.67 | I50: 0 | J50: 2.903721891 | K50: 0
A51: ="DMD1697" -> DMD1697 | B51: ="MAROON" -> MAROON | C51: ="Normal Solid" -> Normal Solid | D51: DBC MET | E51: ="20000290" -> 20000290 | F51: ="7.838" -> 7.838 | G51: ="23.44" -> 23.44 | H51: ="17.92" -> 17.92 | I51: 0 | J51: 2.944335017 | K51: 0
A52: ="DMD1698" -> DMD1698 | B52: ="ALUM." -> ALUM. | C52: ="Other special effect" -> Other special effect | D52: DBC MET | E52: ="20000291" -> 20000291 | F52: ="7.951" -> 7.951 | G52: ="25.38" -> 25.38 | H52: ="17.72" -> 17.72 | I52: 0 | J52: 3.283372999 | K52: 0
A53: ="DMD613" -> DMD613 | B53: ="BLUE" -> BLUE | C53: ="Normal Solid" -> Normal Solid | D53: DBC MET | E53: ="20000295" -> 20000295 | F53: ="8.231" -> 8.231 | G53: ="49.99" -> 49.99 | H53: ="43.39" -> 43.39 | I53: 0 | J53: 1.208398253 | K53: 0
A54: ="DMD614" -> DMD614 | B54: ="BLUE" -> BLUE | C54: ="Normal Solid" -> Normal Solid | D54: DBC MET | E54: ="20000296" -> 20000296 | F54: ="8.192" -> 8.192 | G54: ="50.52" -> 50.52 | H54: ="43.85" -> 43.85 | I54: 0 | J54: 1.217972292 | K54: 0
A55: ="DMD615" -> DMD615 | B55: ="BLUE" -> BLUE | C55: ="Normal Solid" -> Normal Solid | D55: DBC MET | E55: ="20000297" -> 20000297 | F55: ="8.179" -> 8.179 | G55: ="49.38" -> 49.38 | H55: ="42.68" -> 42.68 | I55: 0 | J55: 1.253121839 | K55: 0
A56: ="DMD619" -> DMD619 | B56: ="BLUE SHADE VIOLET" -> BLUE SHADE VIOLET | C56: ="Normal Solid" -> Normal Solid | D56: DBC MET | E56: ="64002125" -> 64002125 | F56: ="8.11" -> 8.11 | G56: ="47.02" -> 47.02 | H56: ="40.61" -> 40.61 | I56: ="0.01" -> 0.01 | J56: 0 | K56: 0
A57: ="DMD622" -> DMD622 | B57: ="RED" -> RED | C57: ="Normal Solid" -> Normal Solid | D57: DBC MET | E57: ="20000303" -> 20000303 | F57: ="8.615" -> 8.615 | G57: ="52.24" -> 52.24 | H57: ="43.03" -> 43.03 | I57: ="0" -> 0 | J57: 1.250583066 | K57: 0
A58: ="DMD641" -> DMD641 | B58: ="YELLOW" -> YELLOW | C58: ="Normal Solid" -> Normal Solid | D58: DBC MET | E58: ="20000322" -> 20000322 | F58: ="8.65" -> 8.65 | G58: ="52.25" -> 52.25 | H58: ="43.07" -> 43.07 | I58: 0 | J58: 1.232534089 | K58: 0
A59: ="DMD642" -> DMD642 | B59: ="YELLOW" -> YELLOW | C59: Normal Solid | D59: DBC MET | E59: ="20000323" -> 20000323 | F59: ="8.897" -> 8.897 | G59: ="55.37" -> 55.37 | H59: ="45.01" -> 45.01 | I59: 0 | J59: 1.207903618 | K59: 0
A60: ="DMD646" -> DMD646 | B60: ="WEAK WHITE" -> WEAK WHITE | C60: Normal Solid | D60: DBC MET | E60: ="20000327" -> 20000327 | F60: ="8.817" -> 8.817 | G60: ="53.8" -> 53.8 | H60: ="43.99" -> 43.99 | I60: 0 | J60: 1.235821595 | K60: 0
A61: ="DMD648" -> DMD648 | B61: ="WEAK BLACK" -> WEAK BLACK | C61: Normal Solid | D61: DBC MET | E61: ="20000329" -> 20000329 | F61: ="8.124" -> 8.124 | G61: ="49.51" -> 49.51 | H61: ="43.2" -> 43.2 | I61: 0 | J61: 1.243578073 | K61: 0
A62: ="DMD649" -> DMD649 | B62: ="CLEAR" -> CLEAR | C62: ="Mixing Clear" -> Mixing Clear | D62: DBC MET | E62: ="20000330" -> 20000330 | F62: ="8.083" -> 8.083 | G62: ="47.36" -> 47.36 | H62: ="41.12" -> 41.12 | I62: 0 | J62: 1.2679772 | K62: 0
A63: ="DMD650" -> DMD650 | B63: ="CRS. ALUM." -> CRS. ALUM. | C63: ="Metallic" -> Metallic | D63: DBC MET | E63: ="20000331" -> 20000331 | F63: ="9.023" -> 9.023 | G63: ="57.94" -> 57.94 | H63: ="46.8" -> 46.8 | I63: 0 | J63: 2.105787331 | K63: 0
A64: ="DMD665" -> DMD665 | B64: ="YELLOW LF" -> YELLOW LF | C64: ="Normal Solid" -> Normal Solid | D64: DBC MET | E64: ="20000343" -> 20000343 | F64: ="9.096" -> 9.096 | G64: ="55.39" -> 55.39 | H64: ="44.01" -> 44.01 | I64: 0 | J64: 1.214844399 | K64: 0
A65: ="DMD666" -> DMD666 | B65: ="YELLOW LF" -> YELLOW LF | C65: Normal Solid | D65: DBC MET | E65: ="20000344" -> 20000344 | F65: ="9.32" -> 9.32 | G65: ="58.4" -> 58.4 | H65: ="46.53" -> 46.53 | I65: 0 | J65: 1.029952265 | K65: 0
A66: ="DMD691" -> DMD691 | B66: ="BLACK" -> BLACK | C66: Normal Solid | D66: DBC MET | E66: ="20000350" -> 20000350 | F66: ="8.582" -> 8.582 | G66: ="49.55" -> 49.55 | H66: ="40.16" -> 40.16 | I66: 0 | J66: 1.367072352 | K66: 0
A67: ="DMX210" -> DMX210 | B67: ="YELLOW" -> YELLOW | C67: ="Inks/Dye" -> Inks/Dye | D67: DBC MET | E67: ="20000467" -> 20000467 | F67: ="7.677" -> 7.677 | G67: ="18.26" -> 18.26 | H67: ="13.8" -> 13.8 | I67: 0 | J67: 2.395512265 | K67: 0
A68: ="DMX211" -> DMX211 | B68: ="ORANGE" -> ORANGE | C68: Inks/Dye | D68: DBC MET | E68: ="20000468" -> 20000468 | F68: ="7.603" -> 7.603 | G68: ="17.77" -> 17.77 | H68: ="12.64" -> 12.64 | I68: 0 | J68: 3.220370103 | K68: 0
A69: ="DMX212" -> DMX212 | B69: ="RED" -> RED | C69: Inks/Dye | D69: DBC MET | E69: ="20000469" -> 20000469 | F69: ="7.59" -> 7.59 | G69: ="17.77" -> 17.77 | H69: ="12.78" -> 12.78 | I69: 0 | J69: 0 | K69: 0
A70: ="DMX213" -> DMX213 | B70: ="RED" -> RED | C70: Inks/Dye | D70: DBC MET | E70: ="20000470" -> 20000470 | F70: ="7.594" -> 7.594 | G70: ="15.86" -> 15.86 | H70: ="10.73" -> 10.73 | I70: 0 | J70: 0 | K70: 0
A71: ="DMX214" -> DMX214 | B71: ="RED" -> RED | C71: Inks/Dye | D71: ="DBC MET" -> DBC MET | E71: ="20000471" -> 20000471 | F71: ="7.424" -> 7.424 | G71: ="11.99" -> 11.99 | H71: ="8.71" -> 8.71 | I71: 0 | J71: 3.446436233 | K71: 0
A72: ="DMX215" -> DMX215 | B72: ="VIOLET" -> VIOLET | C72: Inks/Dye | D72: DBC MET | E72: ="20000472" -> 20000472 | F72: ="7.356" -> 7.356 | G72: ="6.66" -> 6.66 | H72: ="4.06" -> 4.06 | I72: 0 | J72: 3.608305922 | K72: 0
A73: ="DMX216" -> DMX216 | B73: ="BLUE" -> BLUE | C73: Inks/Dye | D73: DBC MET | E73: ="20000473" -> 20000473 | F73: ="7.472" -> 7.472 | G73: ="13.86" -> 13.86 | H73: ="10.06" -> 10.06 | I73: 0 | J73: 3.373907573 | K73: 0
A74: ="DMX217" -> DMX217 | B74: ="GREEN" -> GREEN | C74: Inks/Dye | D74: DBC MET | E74: ="20000474" -> 20000474 | F74: ="7.603" -> 7.603 | G74: ="17.77" -> 17.77 | H74: ="12.64" -> 12.64 | I74: 0 | J74: 3.435091088 | K74: 0
A75: ="DMX218" -> DMX218 | B75: ="BROWN" -> BROWN | C75: Inks/Dye | D75: DBC MET | E75: ="20000475" -> 20000475 | F75: ="7.008" -> 7.008 | G75: ="8.34" -> 8.34 | H75: ="10.24" -> 10.24 | I75: 0 | J75: 1.794468616 | K75: 0
A76: ="DMX219" -> DMX219 | B76: ="BLACK" -> BLACK | C76: Inks/Dye | D76: DBC MET | E76: ="20000476" -> 20000476 | F76: ="7.374" -> 7.374 | G76: ="8.34" -> 8.34 | H76: ="5.57" -> 5.57 | I76: 0 | J76: 3.589625872 | K76: 0
A77: ="DMX220" -> DMX220 | B77: ="BLUE" -> BLUE | C77: Inks/Dye | D77: DBC MET | E77: ="20000477" -> 20000477 | F77: ="7.562" -> 7.562 | G77: ="13.87" -> 13.87 | H77: ="9.09" -> 9.09 | I77: ="0.07" -> 0.07 | J77: 2.554002715 | K77: 0
A78: ="DX685" -> DX685 | B78: ="FLATTING" -> FLATTING | C78: ="Matting Base/Flattener" -> Matting Base/Flattener | D78: DBC MET | E78: ="20000494" -> 20000494 | F78: ="8.203" -> 8.203 | G78: ="20.53" -> 20.53 | H78: ="12.93" -> 12.93 | I78: ="0" -> 0 | J78: 2.063719429 | K78: 0
A79: ="DX78" -> DX78 | B79: ="PRIZM" -> PRIZM | C79: ="Pearlescent" -> Pearlescent | D79: DBC MET | E79: ="20000495" -> 20000495 | F79: ="9.779" -> 9.779 | G79: ="84.99" -> 84.99 | H79: ="76.8" -> 76.8 | I79: 0 | J79: 0.162 | K79: 0
A80: ="DX821" -> DX821 | B80: ="FLOP ADJUSTER" -> FLOP ADJUSTER | C80: ="Flop Adjuster/Tone controller" -> Flop Adjuster/Tone controller | D80: DBC MET | E80: ="64001009" -> 64001009 | F80: ="9.085" -> 9.085 | G80: ="49.52" -> 49.52 | H80: ="33" -> 33 | I80: 0 | J80: 3.041534153 | K80: 0
A81: ="DX995" -> DX995 | B81: ="MATT BASE" -> MATT BASE | C81: ="Matting Base/Flattener" -> Matting Base/Flattener | D81: DBC MET | E81: ="20000497" -> 20000497 | F81: ="8.061" -> 8.061 | G81: ="25.37" -> 25.37 | H81: ="16.99" -> 16.99 | I81: 0 | J81: 2.633930507 | K81: 0
A82: ="FACTORY PACK" -> FACTORY PACK | B82: ="FACTORY PACK ONLY" -> FACTORY PACK ONLY | C82: ="Factory Pack" -> Factory Pack | D82: DBC MET | E82: ="64003247" -> 64003247 | F82: ="1" -> 1 | G82: ="0" -> 0 | H82: ="0" -> 0 | I82: 0 | J82: 0 | K82: 0
A83: ="PRL80" -> PRL80 | B83: ="RED GREEN PEARL" -> RED GREEN PEARL | C83: ="Pearlescent" -> Pearlescent | D83: DBC MET | E83: ="64002442" -> 64002442 | F83: ="21.648" -> 21.648 | G83: ="90" -> 90 | H83: ="65.74" -> 65.74 | I83: 0 | J83: 0.108 | K83: 0
A84: ="PRL87" -> PRL87 | B84: ="BLUE PEARL" -> BLUE PEARL | C84: Pearlescent | D84: DBC MET | E84: ="20000797" -> 20000797 | F84: ="19.997" -> 19.997 | G84: 90 | H84: ="68.37" -> 68.37 | I84: 0 | J84: 0.108 | K84: 0
A85: ="PRL88" -> PRL88 | B85: ="ORANGE PRL" -> ORANGE PRL | C85: Pearlescent | D85: DBC MET | E85: ="20000798" -> 20000798 | F85: ="20.607" -> 20.607 | G85: 90 | H85: ="67.4" -> 67.4 | I85: 0 | J85: 0.2052 | K85: 0
A86: ="PRL89" -> PRL89 | B86: ="VIOLET PRL" -> VIOLET PRL | C86: Pearlescent | D86: DBC MET | E86: ="20000799" -> 20000799 | F86: ="20.607" -> 20.607 | G86: 90 | H86: ="67.4" -> 67.4 | I86: 0 | J86: 0.216 | K86: 0
A87: ="PRL90" -> PRL90 | B87: ="RED PEARL" -> RED PEARL | C87: Pearlescent | D87: DBC MET | E87: ="20000800" -> 20000800 | F87: ="21.596" -> 21.596 | G87: 90 | H87: ="67.4" -> 67.4 | I87: 0 | J87: 0.1512 | K87: 0
A88: ="PRL91" -> PRL91 | B88: ="GREENPEARL" -> GREENPEARL | C88: Pearlescent | D88: DBC MET | E88: ="20000801" -> 20000801 | F88: ="21.596" -> 21.596 | G88: 90 | H88: ="66.76" -> 66.76 | I88: 0 | J88: 0.216 | K88: 0
A89: ="PRL92" -> PRL92 | B89: ="BLUE PEARL" -> BLUE PEARL | C89: Pearlescent | D89: DBC MET | E89: ="20000802" -> 20000802 | F89: ="19.737" -> 19.737 | G89: 90 | H89: ="68.78" -> 68.78 | I89: 0 | J89: 0.216 | K89: 0
A90: ="PRL93" -> PRL93 | B90: ="GOLD PEARL" -> GOLD PEARL | C90: Pearlescent | D90: DBC MET | E90: ="20000803" -> 20000803 | F90: ="21.587" -> 21.587 | G90: 90 | H90: ="65.85" -> 65.85 | I90: 0 | J90: 0.216 | K90: 0
A91: ="PRL95" -> PRL95 | B91: ="WHITEPEARL" -> WHITEPEARL | C91: Pearlescent | D91: DBC MET | E91: ="20000805" -> 20000805 | F91: ="21.587" -> 21.587 | G91: 90 | H91: ="65.85" -> 65.85 | I91: 0 | J91: 0.216 | K91: 0
A92: ="PRL96" -> PRL96 | B92: ="RUSSET PRL" -> RUSSET PRL | C92: Pearlescent | D92: DBC MET | E92: ="20000806" -> 20000806 | F92: ="21.587" -> 21.587 | G92: 90 | H92: ="65.85" -> 65.85 | I92: 0 | J92: 0.216 | K92: 0
A93: ="PRL97" -> PRL97 | B93: ="COPPER PRL" -> COPPER PRL | C93: Pearlescent | D93: DBC MET | E93: ="20000807" -> 20000807 | F93: ="21.587" -> 21.587 | G93: 90 | H93: ="62.48" -> 62.48 | I93: 0 | J93: 0.216 | K93: 0
A94: ="PRL98" -> PRL98 | B94: ="WHITEPEARL" -> WHITEPEARL | C94: Pearlescent | D94: DBC MET | E94: ="20000808" -> 20000808 | F94: ="17.916" -> 17.916 | G94: 90 | H94: ="71.66" -> 71.66 | I94: 0 | J94: 0.216 | K94: 0
A95: ="PRL99" -> PRL99 | B95: ="RED PEARL" -> RED PEARL | C95: Pearlescent | D95: DBC MET | E95: ="20000809" -> 20000809 | F95: ="23.278" -> 23.278 | G95: 90 | H95: ="53.87" -> 53.87 | I95: 0 | J95: 0.108 | K95: 0
A96: ="PRLX1" -> PRLX1 | B96: ="CRYSTAL RED PEARL" -> CRYSTAL RED PEARL | C96: ="Xirallic" -> Xirallic | D96: DBC MET | E96: ="62000021" -> 62000021 | F96: ="24.157" -> 24.157 | G96: 90 | H96: ="62.5" -> 62.5 | I96: 0 | J96: 0.216 | K96: 0
A97: ="PRLX2" -> PRLX2 | B97: ="CRYSTAL SILVER PEARL" -> CRYSTAL SILVER PEARL | C97: Xirallic | D97: DBC MET | E97: ="62000022" -> 62000022 | F97: ="23" -> 23 | G97: 90 | H97: ="65.18" -> 65.18 | I97: 0 | J97: 0.216 | K97: 0
A98: ="PRLX3" -> PRLX3 | B98: ="CRYSTAL GOLD PEARL" -> CRYSTAL GOLD PEARL | C98: Xirallic | D98: DBC MET | E98: ="62000023" -> 62000023 | F98: ="22.95" -> 22.95 | G98: 90 | H98: ="63.69" -> 63.69 | I98: 0 | J98: 0.216 | K98: 0
A99: ="PRLX4" -> PRLX4 | B99: ="CRYSTAL BLUE PEARL" -> CRYSTAL BLUE PEARL | C99: Xirallic | D99: DBC MET | E99: ="64000038" -> 64000038 | F99: ="22.65" -> 22.65 | G99: 90 | H99: ="64.16" -> 64.16 | I99: 0 | J99: 0.216 | K99: 0
A100: ="PRLX5" -> PRLX5 | B100: ="GREEN" -> GREEN | C100: Xirallic | D100: DBC MET | E100: ="64000102" -> 64000102 | F100: ="23.4" -> 23.4 | G100: 90 | H100: ="62.97" -> 62.97 | I100: 0 | J100: 0.108 | K100: 0
A101: ="PRLX6" -> PRLX6 | B101: ="FROST RED" -> FROST RED | C101: Xirallic | D101: DBC MET | E101: ="64000100" -> 64000100 | F101: ="23.15" -> 23.15 | G101: 90 | H101: ="63.37" -> 63.37 | I101: 0 | J101: 0.216 | K101: 0
A102: ="PRLX7" -> PRLX7 | B102: ="COPPER " -> COPPER | C102: Xirallic | D102: DBC MET | E102: ="64000101" -> 64000101 | F102: ="24.157" -> 24.157 | G102: 90 | H102: ="62.5" -> 62.5 | I102: 0 | J102: 0.216 | K102: 0
A103: ="PRLX8" -> PRLX8 | B103: ="COSMIC TURQUOISE" -> COSMIC TURQUOISE | C103: Xirallic | D103: DBC MET | E103: ="64000775" -> 64000775 | F103: ="21.825" -> 21.825 | G103: 90 | H103: ="65.47" -> 65.47 | I103: 0 | J103: 0.216 | K103: 0
A104: ="PRLX9" -> PRLX9 | B104: ="AMETHYST DREAM" -> AMETHYST DREAM | C104: Xirallic | D104: DBC MET | E104: ="64000776" -> 64000776 | F104: ="22.533" -> 22.533 | G104: 90 | H104: ="90" -> 90 | I104: 0 | J104: 0.108 | K104: 0
A105: ="VM4141" -> VM4141 | B105: ="FLAMBOYANCE WHITE" -> FLAMBOYANCE WHITE | C105: ="Other special effect" -> Other special effect | D105: DBC MET | E105: ="64000748" -> 64000748 | F105: ="21.364" -> 21.364 | G105: ="100" -> 100 | H105: 100 | I105: 0 | J105: 0 | K105: 0
A106: ="VM4142" -> VM4142 | B106: ="FLAMBOYANCE GOLD" -> FLAMBOYANCE GOLD | C106: Other special effect | D106: DBC MET | E106: ="64000749" -> 64000749 | F106: ="21.364" -> 21.364 | G106: 100 | H106: 100 | I106: 0 | J106: 0 | K106: 0
A107: ="VM4143" -> VM4143 | B107: ="FLAMBOYANCE RED" -> FLAMBOYANCE RED | C107: Other special effect | D107: DBC MET | E107: ="64000750" -> 64000750 | F107: ="21.364" -> 21.364 | G107: 100 | H107: 100 | I107: 0 | J107: 0 | K107: 0
A108: ="VM4144" -> VM4144 | B108: ="FLAMBOYANCE VIOLET" -> FLAMBOYANCE VIOLET | C108: Other special effect | D108: DBC MET | E108: ="64000751" -> 64000751 | F108: ="21.364" -> 21.364 | G108: 100 | H108: 100 | I108: 0 | J108: 0 | K108: 0
A109: ="VM4145" -> VM4145 | B109: ="FLAMBOYANCE BLUE" -> FLAMBOYANCE BLUE | C109: Other special effect | D109: DBC MET | E109: ="64000752" -> 64000752 | F109: ="21.325" -> 21.325 | G109: 100 | H109: 100 | I109: 0 | J109: 0 | K109: 0
A110: ="VM4146" -> VM4146 | B110: ="FLAMBOYANCE GREEN" -> FLAMBOYANCE GREEN | C110: Other special effect | D110: DBC MET | E110: ="64000753" -> 64000753 | F110: ="21.325" -> 21.325 | G110: 100 | H110: 100 | I110: 0 | J110: 0 | K110: 0
A111: ="VM4162" -> VM4162 | B111: ="VIOLA FANTASY" -> VIOLA FANTASY | C111: ="Pearlescent" -> Pearlescent | D111: DBC MET | E111: ="64000771" -> 64000771 | F111: ="17.91" -> 17.91 | G111: ="90" -> 90 | H111: ="71.66" -> 71.66 | I111: 0 | J111: 0.216 | K111: 0
A112: ="VM4163" -> VM4163 | B112: ="AUTUMN MYSTERY" -> AUTUMN MYSTERY | C112: ="Pearlescent" -> Pearlescent | D112: DBC MET | E112: ="64000772" -> 64000772 | F112: ="15.369" -> 15.369 | G112: ="90" -> 90 | H112: ="75.68" -> 75.68 | I112: 0 | J112: 0.216 | K112: 0
A113: ="VM4164" -> VM4164 | B113: ="ARCTIC FIRE" -> ARCTIC FIRE | C113: ="Pearlescent" -> Pearlescent | D113: DBC MET | E113: ="64000773" -> 64000773 | F113: ="19.194" -> 19.194 | G113: ="91" -> 91 | H113: ="72.75" -> 72.75 | I113: 0 | J113: 0.2376 | K113: 0
A114: ="VM4165" -> VM4165 | B114: ="TROPIC SUNRISE" -> TROPIC SUNRISE | C114: ="Pearlescent" -> Pearlescent | D114: DBC MET | E114: ="64000774" -> 64000774 | F114: ="19.779" -> 19.779 | G114: ="90" -> 90 | H114: ="68.71" -> 68.71 | I114: 0 | J114: 0.108 | K114: 0
A115: ="VM4166" -> VM4166 | B115: ="LAPIS SUNLIGHT" -> LAPIS SUNLIGHT | C115: ="Other special effect" -> Other special effect | D115: DBC MET | E115: ="64001441" -> 64001441 | F115: ="8.029" -> 8.029 | G115: ="28.16" -> 28.16 | H115: ="20.71" -> 20.71 | I115: ="0.03" -> 0.03 | J115: 2.595565395 | K115: 0
A116: ="VM4205" -> VM4205 | B116: ="STAR FIRE" -> STAR FIRE | C116: ="Metallic" -> Metallic | D116: DBC MET | E116: ="64000088" -> 64000088 | F116: ="7.901" -> 7.901 | G116: ="23.34" -> 23.34 | H116: ="19.46" -> 19.46 | I116: ="0" -> 0 | J116: 3.245669605 | K116: 0
A117: ="VM4206" -> VM4206 | B117: ="STARFIRE RED" -> STARFIRE RED | C117: ="Metallic" -> Metallic | D117: DBC MET | E117: ="64001074" -> 64001074 | F117: ="8.012" -> 8.012 | G117: ="24.49" -> 24.49 | H117: ="17.26" -> 17.26 | I117: 0 | J117: 1.606951339 | K117: 0
A118: ="VM4207" -> VM4207 | B118: ="STARFIRE BLUE" -> STARFIRE BLUE | C118: ="Other special effect" -> Other special effect | D118: DBC MET | E118: ="64001242" -> 64001242 | F118: ="7.819" -> 7.819 | G118: ="23.1" -> 23.1 | H118: ="18.79" -> 18.79 | I118: 0 | J118: 0 | K118: 0
A119: ="VM4210" -> VM4210 | B119: ="STARFIRE GREEN II" -> STARFIRE GREEN II | C119: ="Other special effect" -> Other special effect | D119: DBC MET | E119: ="64003061" -> 64003061 | F119: ="7.814" -> 7.814 | G119: ="22.86" -> 22.86 | H119: ="17.06" -> 17.06 | I119: 0 | J119: 3.452804205 | K119: 0
A120: ="VM4211" -> VM4211 | B120: ="STARFIRE WHITE" -> STARFIRE WHITE | C120: ="Other special effect" -> Other special effect | D120: DBC MET | E120: ="64001252" -> 64001252 | F120: ="7.877" -> 7.877 | G120: ="22.5" -> 22.5 | H120: ="16.9" -> 16.9 | I120: 0 | J120: 1.720340898 | K120: 0
A121: ="VM4212" -> VM4212 | B121: ="STARFIRE YELLOW II" -> STARFIRE YELLOW II | C121: ="Metallic" -> Metallic | D121: DBC MET | E121: ="64003078" -> 64003078 | F121: ="7.811" -> 7.811 | G121: ="22.79" -> 22.79 | H121: ="17.01" -> 17.01 | I121: 0 | J121: 1.705687302 | K121: 0
A122: ="VM4370" -> VM4370 | B122: ="SUPER FINE LIQUID METAL" -> SUPER FINE LIQUID METAL | C122: ="Other special effect" -> Other special effect | D122: DBC MET | E122: ="64001686" -> 64001686 | F122: ="7.512" -> 7.512 | G122: ="4.95" -> 4.95 | H122: ="4.13" -> 4.13 | I122: 0 | J122: 2.678250764 | K122: 0
A123: ="VM4380" -> VM4380 | B123: ="PRISM SILVER" -> PRISM SILVER | C123: Other special effect | D123: DBC MET | E123: ="64001556" -> 64001556 | F123: ="8.061" -> 8.061 | G123: ="28.16" -> 28.16 | H123: ="20.4" -> 20.4 | I123: 0 | J123: 1.447036579 | K123: 0
A124: ="VM4381" -> VM4381 | B124: ="SPARKLE SILVER" -> SPARKLE SILVER | C124: Other special effect | D124: DBC MET | E124: ="64002107" -> 64002107 | F124: ="7.997" -> 7.997 | G124: ="24.77" -> 24.77 | H124: ="17.66" -> 17.66 | I124: 0 | J124: 3.209175186 | K124: 0
A125: ="VM4420" -> VM4420 | B125: ="MINI GOLD FLAKE" -> MINI GOLD FLAKE | C125: Other special effect | D125: DBC MET | E125: ="64001950" -> 64001950 | F125: ="11.684" -> 11.684 | G125: ="100" -> 100 | H125: 100 | I125: 0 | J125: 0 | K125: 0
A126: ="VM4421" -> VM4421 | B126: ="MINI SILVER FLAKE" -> MINI SILVER FLAKE | C126: Other special effect | D126: DBC MET | E126: ="64001951" -> 64001951 | F126: 11.684 | G126: 100 | H126: 100 | I126: 0 | J126: 0 | K126: 0
A127: ="VM4422" -> VM4422 | B127: ="BIG RED FLAKE" -> BIG RED FLAKE | C127: Other special effect | D127: DBC MET | E127: ="64001995" -> 64001995 | F127: 11.684 | G127: 100 | H127: 100 | I127: 0 | J127: 0 | K127: 0
A128: ="VM4423" -> VM4423 | B128: ="BIG ORANGE FLAKE" -> BIG ORANGE FLAKE | C128: Other special effect | D128: DBC MET | E128: ="64001996" -> 64001996 | F128: 11.684 | G128: 100 | H128: 100 | I128: 0 | J128: 0 | K128: 0
A129: ="VM4424" -> VM4424 | B129: ="BIG BLUE FLAKE" -> BIG BLUE FLAKE | C129: Other special effect | D129: DBC MET | E129: ="64001998" -> 64001998 | F129: 11.684 | G129: 100 | H129: 100 | I129: 0 | J129: 0 | K129: 0
A130: ="VM4425" -> VM4425 | B130: ="BIG PURPLE FLAKE" -> BIG PURPLE FLAKE | C130: Other special effect | D130: DBC MET | E130: ="64001999" -> 64001999 | F130: 11.684 | G130: 100 | H130: 100 | I130: 0 | J130: 0 | K130: 0
A131: ="VM4426" -> VM4426 | B131: ="BIG GREEN FLAKE" -> BIG GREEN FLAKE | C131: Other special effect | D131: DBC MET | E131: ="64002000" -> 64002000 | F131: 11.684 | G131: 100 | H131: 100 | I131: 0 | J131: 0 | K131: 0
A132: ="VM4502" -> VM4502 | B132: ="SAPPHIRE" -> SAPPHIRE | C132: Other special effect | D132: DBC MET | E132: ="64002008" -> 64002008 | F132: ="22.95" -> 22.95 | G132: 100 | H132: 100 | I132: 0 | J132: 0 | K132: 0
A133: ="VM4503" -> VM4503 | B133: ="JADE" -> JADE | C133: Other special effect | D133: DBC MET | E133: ="64002009" -> 64002009 | F133: ="22.95" -> 22.95 | G133: 100 | H133: 100 | I133: 0 | J133: 0 | K133: 0
A134: ="VM4504" -> VM4504 | B134: ="GARNET" -> GARNET | C134: Other special effect | D134: DBC MET | E134: ="64002010" -> 64002010 | F134: ="22.95" -> 22.95 | G134: 100 | H134: 100 | I134: 0 | J134: 0 | K134: 0
A135: ="VM4505" -> VM4505 | B135: ="TOPAZ" -> TOPAZ | C135: Other special effect | D135: ="DBC MET" -> DBC MET | E135: ="64002011" -> 64002011 | F135: ="22.95" -> 22.95 | G135: 100 | H135: 100 | I135: 0 | J135: 0 | K135: 0
A136: ="VM4506" -> VM4506 | B136: ="OPAL" -> OPAL | C136: Other special effect | D136: DBC MET | E136: ="64002012" -> 64002012 | F136: ="22.533" -> 22.533 | G136: 100 | H136: 100 | I136: 0 | J136: 0 | K136: 0
A137: ="VM4987" -> VM4987 | B137: ="CYAN/PURPL" -> CYAN/PURPL | C137: ="Metallic" -> Metallic | D137: DBC MET | E137: ="20000184" -> 20000184 | F137: ="8.071" -> 8.071 | G137: ="28.25" -> 28.25 | H137: ="20.38" -> 20.38 | I137: 0 | J137: 2.499290579 | K137: 0
A138: ="VM4988" -> VM4988 | B138: ="SILV/GREEN" -> SILV/GREEN | C138: Metallic | D138: DBC MET | E138: ="20000185" -> 20000185 | F138: 8.071 | G138: 28.25 | H138: 20.38 | I138: 0 | J138: 2.49851092 | K138: 0
A139: ="VM4989" -> VM4989 | B139: ="GRN/PURPLE" -> GRN/PURPLE | C139: Metallic | D139: DBC MET | E139: ="20000186" -> 20000186 | F139: 8.071 | G139: 28.25 | H139: 20.38 | I139: 0 | J139: 2.499883568 | K139: 0
A140: ="VM4990" -> VM4990 | B140: ="BLUE/RED" -> BLUE/RED | C140: Metallic | D140: DBC MET | E140: ="20000187" -> 20000187 | F140: 8.071 | G140: 28.25 | H140: 20.38 | I140: 0 | J140: 2.499254153 | K140: 0
A141: ="VM4991" -> VM4991 | B141: ="MAGEN/GOLD" -> MAGEN/GOLD | C141: Metallic | D141: DBC MET | E141: ="20000188" -> 20000188 | F141: 8.071 | G141: 28.25 | H141: 20.38 | I141: 0 | J141: 2.499254153 | K141: 0
A142: ="VM4994" -> VM4994 | B142: ="GOLD/SILVER" -> GOLD/SILVER | C142: Metallic | D142: DBC MET | E142: ="20000988" -> 20000988 | F142: 8.071 | G142: 28.25 | H142: 20.38 | I142: 0 | J142: 1.249308918 | K142: 0
A143: ="VM4995" -> VM4995 | B143: ="RED TO GOLD" -> RED TO GOLD | C143: ="Pearlescent" -> Pearlescent | D143: DBC MET | E143: ="64001065" -> 64001065 | F143: ="8.078" -> 8.078 | G143: ="28.18" -> 28.18 | H143: 20.38 | I143: 0 | J143: 2.499883568 | K143: 0
A144: M104 | B144: RED | C144: Normal Solid | D144: MBP | E144: 20000647 | F144: 7.989 | G144: 43.3 | H144: 36.89 | I144: 0 | J144: 7.149796558 | K144: 0
A145: M105 | B145: HIGH STRENGTH RED | C145: High Strength | D145: MBP | E145: 64001520 | F145: 8.3 | G145: 46.36 | H145: 38.73 | I145: 0 | J145: 2.248865275 | K145: 0
A146: M106 | B146: RED OXIDE | C146: Normal Solid | D146: MBP | E146: 20000648 | F146: 8.109 | G146: 44.23 | H146: 36.04 | I146: 0 | J146: 5.987770999 | K146: 0
A147: M109 | B147: FINE RUSSET PEARL | C147: Pearlescent | D147: MBP | E147: 64000344 | F147: 23.27 | G147: 90 | H147: 53.87 | I147: 0 | J147: 0.108 | K147: 0
A148: M110 | B148: VIOLET PEARL | C148: Pearlescent | D148: MBP | E148: 64000345 | F148: 20.6 | G148: 90 | H148: 67.4 | I148: 0 | J148: 0.108 | K148: 0
A149: M111 | B149: YELLOW | C149: Normal Solid | D149: MBP | E149: 20000651 | F149: 8.295 | G149: 45.75 | H149: 38.27 | I149: 0 | J149: 6.917775961 | K149: 0
A150: M112NF | B150: GOLD | C150: Normal Solid | D150: MBP | E150: 64000093 | F150: 7.963 | G150: 44.11 | H150: 38.37 | I150: 0 | J150: 3.916377348 | K150: 0
A151: M115 | B151: YELLOW | C151: Normal Solid | D151: MBP | E151: 20000655 | F151: 8.441 | G151: 46.6 | H151: 36.76 | I151: 0 | J151: 5.947502618 | K151: 0
A152: M116NF | B152: YELLOW | C152: Normal Solid | D152: MBP | E152: 64000094 | F152: 7.948 | G152: 43.68 | H152: 37.96 | I152: 0 | J152: 3.945935732 | K152: 0
A153: M117 | B153: JET BLACK | C153: Normal Solid | D153: MBP | E153: 20000657 | F153: 7.904 | G153: 43.51 | H153: 37.37 | I153: 0 | J153: 7.202501053 | K153: 1
A154: M118 | B154: BLACK | C154: Normal Solid | D154: MBP | E154: 20000658 | F154: 7.762 | G154: 41.71 | H154: 34.96 | I154: 0 | J154: 6.104991507 | K154: 0
A155: M119 | B155: WHITE | C155: Normal Solid | D155: MBP | E155: 20000659 | F155: 12.922 | G155: 67.69 | H155: 41.14 | I155: 0 | J155: 3.438862413 | K155: 0
A156: M120 | B156: WHITE | C156: Normal Solid | D156: MBP | E156: 20000660 | F156: 8.894 | G156: 52.69 | H156: 41.07 | I156: 0 | J156: 5.769847054 | K156: 0
A157: M121 | B157: BLUE | C157: Normal Solid | D157: MBP | E157: 20000661 | F157: 7.916 | G157: 43.95 | H157: 37.66 | I157: 0 | J157: 6.323552009 | K157: 0
A158: M122 | B158: BLUE | C158: Normal Solid | D158: MBP | E158: 20000662 | F158: 7.923 | G158: 43.38 | H158: 37.17 | I158: 0 | J158: 6.936965842 | K158: 0
A159: M123 | B159: BLUE | C159: Normal Solid | D159: MBP | E159: 20000663 | F159: 7.834 | G159: 43.06 | H159: 37.09 | I159: 0 | J159: 0 | K159: 0
A160: M125 | B160: MED. ALUM. | C160: Metallic | D160: MBP | E160: 20000665 | F160: 8.211 | G160: 48.6 | H160: 40.71 | I160: 0 | J160: 0 | K160: 0
A161: M126 | B161: CRS. ALUM. | C161: Metallic | D161: MBP | E161: 20000666 | F161: 8.259 | G161: 49.49 | H161: 41.25 | I161: 0 | J161: 5.707715895 | K161: 0
A162: M127 | B162: MED BRT ALUM. | C162: Metallic | D162: MBP | E162: 20000667 | F162: 8.271 | G162: 48.1 | H162: 39.37 | I162: 0 | J162: 5.54863661 | K162: 0
A163: M128 | B163: GREEN | C163: Normal Solid | D163: MBP | E163: 20000668 | F163: 7.915 | G163: 43.54 | H163: 37.23 | I163: 0 | J163: 0 | K163: 0
A164: M132 | B164: MED.MAROON | C164: Normal Solid | D164: MBP | E164: 20000672 | F164: 7.974 | G164: 44.37 | H164: 37.68 | I164: 0 | J164: 6.505299816 | K164: 0
A165: M135 | B165: FINE ALUM. | C165: Metallic | D165: MBP | E165: 20000675 | F165: 8.164 | G165: 48.54 | H165: 40.99 | I165: 0 | J165: 5.882974547 | K165: 0
A166: M141 | B166: RED PEARL | C166: Pearlescent | D166: MBP | E166: 20000676 | F166: 21.596 | G166: 90 | H166: 67.4 | I166: 0 | J166: 0.108 | K166: 0
A167: M142 | B167: WHITE PRL | C167: Pearlescent | D167: MBP | E167: 20000677 | F167: 21.587 | G167: 90 | H167: 65.85 | I167: 0 | J167: 0.108 | K167: 0
A168: M143 | B168: BLUE PEARL | C168: Pearlescent | D168: MBP | E168: 20000678 | F168: 19.737 | G168: 90 | H168: 68.78 | I168: 0 | J168: 0.108 | K168: 0
A169: M144 | B169: GREEN PRL | C169: Pearlescent | D169: MBP | E169: 20000679 | F169: 21.596 | G169: 90 | H169: 66.77 | I169: 0 | J169: 0.108 | K169: 0
A170: M145 | B170: RUSSET PRL | C170: Pearlescent | D170: MBP | E170: 20000680 | F170: 21.587 | G170: 90 | H170: 65.85 | I170: 0 | J170: 0.108 | K170: 0
A171: M146 | B171: COPPER PRL | C171: Pearlescent | D171: MBP | E171: 20000681 | F171: 21.587 | G171: 90 | H171: 71.66 | I171: 0 | J171: 0.108 | K171: 0
A172: M147 | B172: GOLD PRL | C172: Pearlescent | D172: MBP | E172: 20000682 | F172: 21.587 | G172: 90 | H172: 65.85 | I172: 0 | J172: 0.108 | K172: 0
A173: M153 | B173: RS YELL LF | C173: Normal Solid | D173: MBP | E173: 20000688 | F173: 8.753 | G173: 53.47 | H173: 42.99 | I173: 0 | J173: 2.993417276 | K173: 0
A174: M154 | B174: LF ORANGE | C174: Normal Solid | D174: MBP | E174: 20000689 | F174: 8.16 | G174: 47.76 | H174: 40.77 | I174: 0 | J174: 3.500514229 | K174: 0
A175: M157 | B175: COARSE SILVER DOLLAR ALUMINIUM | C175: Metallic | D175: MBP | E175: 64001434 | F175: 8.25 | G175: 50.15 | H175: 43.23 | I175: 0 | J175: 2.847637607 | K175: 0
A176: M158 | B176: MICRONIZED WHITE | C176: Flop Adjuster/Tone controller | D176: MBP | E176: 64000458 | F176: 8.51 | G176: 44.55 | H176: 33.82 | I176: 0 | J176: 3.385145875 | K176: 0
A177: M159 | B177: ORANGE | C177: Normal Solid | D177: MBP | E177: 64003415 | F177: 7.986 | G177: 43.68 | H177: 37.81 | I177: 0 | J177: 3.894396083 | K177: 0
A178: M551 | B178: SILVER DIAMONDS | C178: Other special effect | D178: MBP | E178: 64001524 | F178: 8.309 | G178: 50 | H178: 41.42 | I178: 0 | J178: 2.748514611 | K178: 0
A179: M552 | B179: GOLD DIAMONDS | C179: Other special effect | D179: MBP | E179: 64001525 | F179: 8.293 | G179: 49.92 | H179: 41.44 | I179: 0 | J179: 2.753093726 | K179: 0
A180: M553 | B180: RUSSET DIAMONDS | C180: Other special effect | D180: MBP | E180: 64001526 | F180: 8.321 | G180: 50.04 | H180: 41.39 | I180: 0 | J180: 2.746189665 | K180: 0
A181: M554 | B181: BLUE DIAMONDS | C181: Other special effect | D181: MBP | E181: 64001527 | F181: 8.293 | G181: 49.92 | H181: 41.44 | I181: 0 | J181: 2.753133455 | K181: 0
A182: M555 | B182: RED DIAMONDS | C182: Other special effect | D182: MBP | E182: 64001528 | F182: 8.293 | G182: 49.92 | H182: 41.44 | I182: 0 | J182: 2.753070133 | K182: 0
A183: M556 | B183: GREEN DIAMONDS | C183: Other special effect | D183: MBP | E183: 64001688 | F183: 8.293 | G183: 49.92 | H183: 41.44 | I183: 0 | J183: 2.753157048 | K183: 0
A184: M557 | B184: COPPER DIAMONDS | C184: Other special effect | D184: MBP | E184: 64001628 | F184: 8.3 | G184: 49.92 | H184: 41.39 | I184: 0 | J184: 2.753252031 | K184: 0
A185: M558 | B185: VIOLET DIAMONDS | C185: Other special effect | D185: MBP | E185: 64003017 | F185: 8.287 | G185: 49.92 | H185: 41.49 | I185: 0 | J185: 2.753157048 | K185: 0
A186: M561 | B186: FINE WHITE MICA | C186: Pearlescent | D186: MBP | E186: 64001961 | F186: 8.31 | G186: 49.91 | H186: 41.32 | I186: 0 | J186: 2.824411105 | K186: 0
A187: M569 | B187: HIGH STRENGTH RED | C187: Normal Solid | D187: MBP | E187: 64003403 | F187: 8.782 | G187: 55.14 | H187: 45.59 | I187: 0 | J187: 0 | K187: 0
A188: M570 | B188: FINE BLUE PEARL | C188: Pearlescent | D188: MBP | E188: 64003020 | F188: 8.301 | G188: 49.92 | H188: 41.39 | I188: 0 | J188: 2.753133455 | K188: 0
A189: M571 | B189: VIOLET | C189: Normal Solid | D189: MBP | E189: 64000271 | F189: 8.034 | G189: 40.33 | H189: 33.41 | I189: 0 | J189: 3.061152967 | K189: 0
A190: M572 | B190: DEEP VIOLET | C190: Normal Solid | D190: MBP | E190: 64000272 | F190: 7.973 | G190: 44.23 | H190: 38.65 | I190: 0 | J190: 3.003092802 | K190: 0
A191: M573 | B191: MAROON | C191: Normal Solid | D191: MBP | E191: 64000273 | F191: 8.223 | G191: 48.25 | H191: 41.01 | I191: 0 | J191: 3.582824257 | K191: 0
A192: M575 | B192: GS BLUE | C192: Normal Solid | D192: MBP | E192: 64000275 | F192: 7.853 | G192: 35.53 | H192: 28.8 | I192: 0 | J192: 3.476656711 | K192: 0
A193: M576 | B193: MAGENTA | C193: Normal Solid | D193: MBP | E193: 64000276 | F193: 7.89 | G193: 35.6 | H193: 28.89 | I193: 0 | J193: 3.284854832 | K193: 0
A194: M577 | B194: TRANS RED OXIDE | C194: Normal Solid | D194: MBP | E194: 64000277 | F194: 9.105 | G194: 47.29 | H194: 33.13 | I194: 0 | J194: 2.793053275 | K194: 0
A195: M578 | B195: YS GREEN | C195: Normal Solid | D195: MBP | E195: 64000278 | F195: 8.362 | G195: 49.81 | H195: 42.06 | I195: 0 | J195: 2.67437591 | K195: 0
A196: M579 | B196: VIOLET BLUE | C196: Normal Solid | D196: MBP | E196: 64003255 | F196: 7.861 | G196: 44.02 | H196: 37.92 | I196: 0 | J196: 0 | K196: 0
A197: M581 | B197: INORGANIC YELLOW | C197: Normal Solid | D197: MBP | E197: 64000280 | F197: 10.565 | G197: 56.52 | H197: 36.8 | I197: 0 | J197: 2.016714289 | K197: 0
A198: M582 | B198: RED | C198: Normal Solid | D198: MBP | E198: 64000281 | F198: 7.943 | G198: 42.05 | H198: 36.2 | I198: 0 | J198: 3.323789641 | K198: 0
A199: M583 | B199: BLUE ALUMINUM | C199: Metallic | D199: MBP | E199: 64003023 | F199: 8.119 | G199: 47.9 | H199: 39.68 | I199: 0 | J199: 0 | K199: 0
A200: M589 | B200: DEEP BASECOAT BLACK | C200: Normal Solid | D200: MBP | E200: 64001442 | F200: 7.45 | G200: 23.18 | H200: 17.76 | I200: 0 | J200: 1.687938115 | K200: 0
A201: M590 | B201: FLATTENING BASE | C201: Matting Base/Flattener | D201: MBP | E201: 64001437 | F201: 10.24 | G201: 20 | H201: 19.43 | I201: 0 | J201: 0.2234608159 | K201: 0
A202: M591 | B202: FINE SATIN ALUMINUM | C202: Metallic | D202: MBP | E202: 64000282 | F202: 8.263 | G202: 49.73 | H202: 41.46 | I202: 0 | J202: 2.844079217 | K202: 0
A203: M592 | B203: FINE BRIGHT ALUM | C203: Metallic | D203: MBP | E203: 64000283 | F203: 8.217 | G203: 48.65 | H203: 40.45 | I203: 0 | J203: 5.838808017 | K203: 0
... 185 more rows
